[Event "FIDE Women World Blitz 2021"]
[Site "Warsaw"]
[Date "2021.12.29"]
[Round "2.11"]
[White "Injac, Teodora"]
[Black "Atalik, Ekaterina"]
[Result "1/2-1/2"]
[ECO "A11"]
[WhiteElo "2387"]
[BlackElo "2430"]
[Annotator "NA"]
[PlyCount "161"]
[EventDate "2021.12.29"]
[EventType "swiss"]
[EventCountry "POL"]
[Tiebreak "Cut1 Buchholz"]
[SourceTitle "playchess.com"]
[Source "ChessBase"]
[SourceQuality "1"]
[TimeControl "180+2"]

1. Nf3 {[%emt 0:00:02]} d5 {[%emt 0:00:01]} 2. g3 {[%emt 0:00:01]} c6 {[%emt 0:
00:01]} 3. Bg2 {[%emt 0:00:01]} Nf6 {[%emt 0:00:03]} 4. O-O {[%emt 0:00:01]}
Bf5 {[%emt 0:00:03]} 5. c4 {[%emt 0:00:03]} e6 {[%emt 0:00:01]} 6. Qb3 {
[%emt 0:00:03]} Qb6 {[%emt 0:00:03]} 7. d3 {[%emt 0:00:01]} Qxb3 {[%emt 0:00:
04]} 8. axb3 {[%emt 0:00:01]} Nbd7 {[%emt 0:00:04]} 9. Bd2 {[%emt 0:00:03]} h6
{[%emt 0:00:03]} 10. Bc3 {[%emt 0:00:05]} Be7 {[%emt 0:00:04]} 11. Nbd2 {
[%emt 0:00:04]} O-O {[%emt 0:00:02]} 12. b4 {[%emt 0:00:05]} a6 {[%emt 0:00:04]
} 13. Nb3 {[%emt 0:00:11]} dxc4 {[%emt 0:00:10]} 14. dxc4 {[%emt 0:00:02]} Ne4
{[%emt 0:00:03]} 15. Na5 {[%emt 0:00:24]} Nxc3 {[%emt 0:00:03]} 16. bxc3 {
[%emt 0:00:01]} Rab8 {[%emt 0:00:02]} 17. c5 {[%emt 0:00:06]} Bf6 {[%emt 0:00:
04]} 18. Nd4 {[%emt 0:00:03]} Bg6 {[%emt 0:00:11]} 19. Rfd1 {[%emt 0:00:06]}
Ne5 {[%emt 0:00:12]} 20. h3 {[%emt 0:00:06]} Bh7 {[%emt 0:00:20]} 21. f4 {
[%emt 0:00:27]} Ng6 {[%emt 0:00:01]} 22. e3 {[%emt 0:00:32]} e5 {[%emt 0:00:03]
} 23. Ndxc6 {[%emt 0:00:12]} bxc6 {[%emt 0:00:01]} 24. Nxc6 {[%emt 0:00:01]}
Rbc8 {[%emt 0:00:11]} 25. f5 {[%emt 0:00:08]} Ne7 {[%emt 0:00:05]} 26. Nxe7+
Bxe7 {[%emt 0:00:01]} 27. Be4 {[%emt 0:00:44]} g6 {[%emt 0:00:09]} 28. g4 {
[%emt 0:00:01]} gxf5 {[%emt 0:00:02]} 29. gxf5 {[%emt 0:00:00]} Bxc5 {[%emt 0:
00:18]} 30. bxc5 {[%emt 0:00:02]} Rxc5 {[%emt 0:00:01]} 31. Rxa6 {[%emt 0:00:
06]} Rxc3 {[%emt 0:00:02]} 32. Kf2 {[%emt 0:00:08]} f6 {[%emt 0:00:12]} 33. Rd7
{[%emt 0:00:08]} Kh8 {[%emt 0:00:16]} 34. Raa7 {[%emt 0:00:00]} Bg8 {[%emt 0:
00:01]} 35. Bd5 {[%emt 0:00:04]} Rd3 {[%emt 0:00:14]} 36. e4 {[%emt 0:00:05]}
Rb8 {[%emt 0:00:06]} 37. Ke2 {[%emt 0:00:02]} Rxh3 {[%emt 0:00:04]} 38. Kf2 {
[%emt 0:00:03]} Rc3 {[%emt 0:00:03]} 39. Ra2 {[%emt 0:00:03]} Rbc8 {[%emt 0:00:
11]} 40. Bxg8 {[%emt 0:00:02]} Kxg8 {[%emt 0:00:04]} 41. Rd6 {[%emt 0:00:01]}
Rc2+ {[%emt 0:00:05]} 42. Rxc2 {[%emt 0:00:01]} Rxc2+ {[%emt 0:00:01]} 43. Kf3
Kf7 {[%emt 0:00:04]} 44. Rd7+ {[%emt 0:00:02]} Ke8 {[%emt 0:00:03]} 45. Rh7 {
[%emt 0:00:01]} Rh2 {[%emt 0:00:01]} 46. Kg3 {[%emt 0:00:01]} Rh1 {[%emt 0:00:
03]} 47. Kg2 {[%emt 0:00:02]} Rh4 {[%emt 0:00:02]} 48. Kf3 {[%emt 0:00:01]} h5
{[%emt 0:00:04]} 49. Rh6 {[%emt 0:00:07]} Kf7 {[%emt 0:00:01]} 50. Rh7+ {
[%emt 0:00:01]} Kg8 {[%emt 0:00:01]} 51. Rb7 {[%emt 0:00:03]} Rf4+ {[%emt 0:00:
03]} 52. Ke3 {[%emt 0:00:01]} h4 {[%emt 0:00:01]} 53. Rc7 {[%emt 0:00:04]} h3 {
[%emt 0:00:03]} 54. Rc2 {[%emt 0:00:01]} Kf7 {[%emt 0:00:05]} 55. Rh2 {[%emt 0:
00:01]} Rh4 {[%emt 0:00:01]} 56. Kf3 {[%emt 0:00:01]} Ke7 {[%emt 0:00:02]} 57.
Kg3 {[%emt 0:00:03]} Rxe4 {[%emt 0:00:02]} 58. Kxh3 {[%emt 0:00:01]} Rf4 {
[%emt 0:00:01]} 59. Rd2 {[%emt 0:00:07]} Rxf5 {[%emt 0:00:03]} 60. Kg3 {
[%emt 0:00:00]} Ke6 {[%emt 0:00:00]} 61. Kg4 {[%emt 0:00:02]} Rf4+ {[%emt 0:00:
02]} 62. Kg3 {[%emt 0:00:00]} Ra4 {[%emt 0:00:01]} 63. Rb2 {[%emt 0:00:01]} Kf5
{[%emt 0:00:02]} 64. Rb3 {[%emt 0:00:02]} Kg5 {[%emt 0:00:02]} 65. Re3 {
[%emt 0:00:01]} e4 {[%emt 0:00:02]} 66. Rb3 {[%emt 0:00:04]} f5 {[%emt 0:00:01]
} 67. Rc3 {[%emt 0:00:06]} f4+ {[%emt 0:00:02]} 68. Kh3 {[%emt 0:00:01]} e3 {
[%emt 0:00:03]} 69. Rc5+ {[%emt 0:00:01]} Kf6 {[%emt 0:00:03]} 70. Kg2 {
[%emt 0:00:01]} Re4 {[%emt 0:00:02]} 71. Rc1 {[%emt 0:00:04]} e2 {[%emt 0:00:
09]} 72. Re1 {[%emt 0:00:00]} Kf5 {[%emt 0:00:02]} 73. Kf2 {[%emt 0:00:02]} Kg4
{[%emt 0:00:11]} 74. Rg1+ {[%emt 0:00:02]} Kf5 {[%emt 0:00:05]} 75. Re1 {
[%emt 0:00:01]} Re3 {[%emt 0:00:08]} 76. Rxe2 {[%emt 0:00:01]} Ke4 {[%emt 0:00:
01]} 77. Rxe3+ {[%emt 0:00:02]} fxe3+ {[%emt 0:00:01]} 78. Ke2 {[%emt 0:00:01]}
Kf4 {[%emt 0:00:02]} 79. Ke1 {[%emt 0:00:01]} Kf3 {[%emt 0:00:03]} 80. Kf1 {
[%emt 0:00:00]} e2+ {[%emt 0:00:01]} 81. Ke1 1/2-1/2

[Event "FIDE Women World Blitz 2021"]
[Site "Warsaw"]
[Date "2021.12.29"]
[Round "2.11"]
[White "Kovanova, Baira"]
[Black "Brambilla, Renee Blandy T."]
[Result "1-0"]
[ECO "B30"]
[WhiteElo "2331"]
[BlackElo "1651"]
[Annotator "NA"]
[PlyCount "45"]
[EventDate "2021.12.29"]
[EventType "swiss"]
[EventCountry "POL"]
[Tiebreak "Cut1 Buchholz"]
[SourceTitle "playchess.com"]
[Source "ChessBase"]
[SourceQuality "1"]
[TimeControl "180+2"]

1. e4 {[%emt 0:00:01]} c5 {[%emt 0:00:01]} 2. Nf3 {[%emt 0:00:01]} Nc6 {
[%emt 0:00:01]} 3. Bb5 {[%emt 0:00:01]} e6 {[%emt 0:00:02]} 4. O-O {[%emt 0:00:
03]} Nge7 {[%emt 0:00:03]} 5. Re1 {[%emt 0:00:23]} a6 {[%emt 0:00:03]} 6. Bf1 {
[%emt 0:00:02]} g6 {[%emt 0:00:02]} 7. d3 {[%emt 0:00:09]} Bg7 {[%emt 0:00:02]}
8. Nc3 {[%emt 0:00:10]} O-O {[%emt 0:00:06]} 9. e5 {[%emt 0:00:08]} b5 {
[%emt 0:00:17]} 10. Bf4 {[%emt 0:00:05]} Bb7 {[%emt 0:00:05]} 11. Ne4 {[%emt 0:
00:04]} Rc8 {[%emt 0:00:22]} 12. Nxc5 {[%emt 0:00:13]} Rc7 {[%emt 0:00:21]} 13.
Nxb7 {[%emt 0:00:03]} Rxb7 {[%emt 0:00:02]} 14. Qd2 {[%emt 0:00:01]} Nd5 {
[%emt 0:00:14]} 15. Bh6 {[%emt 0:00:06]} Rc7 {[%emt 0:00:17]} 16. d4 {[%emt 0:
00:04]} Qc8 {[%emt 0:00:12]} 17. c3 {[%emt 0:00:01]} b4 {[%emt 0:00:06]} 18. c4
{[%emt 0:00:02]} Nb6 {[%emt 0:00:06]} 19. b3 {[%emt 0:00:12]} a5 {[%emt 0:00:
06]} 20. Rac1 {[%emt 0:00:11]} Rd8 {[%emt 0:00:13]} 21. d5 {[%emt 0:00:04]} Ne7
{[%emt 0:00:06]} 22. Bxg7 {[%emt 0:00:05]} Kxg7 {[%emt 0:00:11]} 23. d6 {
[%emt 0:00:01]} 1-0

[Event "FIDE Women World Blitz 2021"]
[Site "Warsaw"]
[Date "2021.12.29"]
[Round "2.12"]
[White "Vantika Agrawal"]
[Black "Berend, Elvira"]
[Result "1-0"]
[ECO "E16"]
[WhiteElo "2329"]
[BlackElo "2328"]
[Annotator "NA"]
[PlyCount "109"]
[EventDate "2021.12.29"]
[EventType "swiss"]
[EventCountry "POL"]
[Tiebreak "Cut1 Buchholz"]
[SourceTitle "playchess.com"]
[Source "ChessBase"]
[SourceQuality "1"]
[TimeControl "180+2"]

1. d4 {[%emt 0:00:01]} Nf6 {[%emt 0:00:02]} 2. c4 {[%emt 0:00:02]} e6 {[%emt 0:
00:01]} 3. g3 {[%emt 0:00:02]} Bb4+ {[%emt 0:00:04]} 4. Nd2 {[%emt 0:00:03]}
O-O {[%emt 0:00:03]} 5. Bg2 {[%emt 0:00:01]} d5 {[%emt 0:00:08]} 6. Ngf3 {
[%emt 0:00:02]} b6 {[%emt 0:00:13]} 7. O-O {[%emt 0:00:03]} Bb7 {[%emt 0:00:01]
} 8. b3 {[%emt 0:00:04]} dxc4 {[%emt 0:00:03]} 9. Nxc4 {[%emt 0:00:26]} Bc3 {
[%emt 0:00:05]} 10. Bb2 {[%emt 0:00:33]} Bxb2 {[%emt 0:00:02]} 11. Nxb2 {
[%emt 0:00:01]} Nbd7 {[%emt 0:00:01]} 12. Nc4 {[%emt 0:00:06]} Qe7 {[%emt 0:00:
10]} 13. Rc1 {[%emt 0:00:09]} c5 {[%emt 0:00:01]} 14. dxc5 {[%emt 0:00:13]}
Nxc5 {[%emt 0:00:02]} 15. Qd6 {[%emt 0:00:19]} Qxd6 {[%emt 0:00:07]} 16. Nxd6 {
[%emt 0:00:02]} Bd5 {[%emt 0:00:01]} 17. Ne5 {[%emt 0:00:11]} Rad8 {[%emt 0:00:
11]} 18. Ndc4 {[%emt 0:00:38]} Bxg2 {[%emt 0:00:02]} 19. Kxg2 {[%emt 0:00:01]}
Rd5 {[%emt 0:00:39]} 20. b4 {[%emt 0:00:08]} Na6 {[%emt 0:00:12]} 21. Nd3 {
[%emt 0:00:06]} Rfd8 {[%emt 0:00:08]} 22. a3 {[%emt 0:00:02]} Ne8 {[%emt 0:00:
07]} 23. Rc2 {[%emt 0:00:06]} Nac7 {[%emt 0:00:07]} 24. Rfc1 {[%emt 0:00:05]}
Nb5 {[%emt 0:00:01]} 25. Nf4 {[%emt 0:00:13]} Rd4 {[%emt 0:00:09]} 26. e3 {
[%emt 0:00:02]} Rd1 {[%emt 0:00:13]} 27. Rxd1 {[%emt 0:00:02]} Rxd1 {[%emt 0:
00:01]} 28. a4 {[%emt 0:00:05]} Nbc7 {[%emt 0:00:02]} 29. Ne5 {[%emt 0:00:03]}
f6 {[%emt 0:00:11]} 30. Nc6 {[%emt 0:00:01]} a6 {[%emt 0:00:05]} 31. Ne2 {
[%emt 0:00:04]} Rb1 {[%emt 0:00:11]} 32. Ned4 {[%emt 0:00:02]} g6 {[%emt 0:00:
06]} 33. h4 {[%emt 0:00:01]} e5 {[%emt 0:00:01]} 34. Ne2 {[%emt 0:00:04]} Ra1 {
[%emt 0:00:03]} 35. a5 {[%emt 0:00:02]} bxa5 {[%emt 0:00:02]} 36. bxa5 {
[%emt 0:00:02]} Kf8 {[%emt 0:00:11]} 37. Nc3 {[%emt 0:00:01]} h5 {[%emt 0:00:
06]} 38. Ne4 {[%emt 0:00:00]} Ra4 {[%emt 0:00:05]} 39. Nc5 {[%emt 0:00:01]} Ra1
{[%emt 0:00:03]} 40. Nd7+ {[%emt 0:00:08]} Kf7 {[%emt 0:00:04]} 41. Nb6 {
[%emt 0:00:03]} Ne6 {[%emt 0:00:07]} 42. Rd2 {[%emt 0:00:01]} Nc5 {[%emt 0:00:
03]} 43. Nd8+ {[%emt 0:00:04]} Ke7 {[%emt 0:00:02]} 44. Nc8+ {[%emt 0:00:02]}
Kf8 {[%emt 0:00:01]} 45. Nc6 {[%emt 0:00:02]} Nb7 {[%emt 0:00:03]} 46. Rd7 {
[%emt 0:00:02]} Nxa5 {[%emt 0:00:04]} 47. Nd8 {[%emt 0:00:02]} Nc6 {[%emt 0:00:
07]} 48. Nxc6 {[%emt 0:00:01]} Rc1 {[%emt 0:00:01]} 49. N8a7 {[%emt 0:00:02]}
a5 {[%emt 0:00:01]} 50. Nxa5 {[%emt 0:00:01]} Rc5 {[%emt 0:00:01]} 51. Nb3 {
[%emt 0:00:02]} Rc3 {[%emt 0:00:01]} 52. Nd2 {[%emt 0:00:02]} f5 {[%emt 0:00:
01]} 53. Nf3 {[%emt 0:00:01]} Rc5 {[%emt 0:00:01]} 54. Ng5 {[%emt 0:00:01]} Ng7
{[%emt 0:00:01]} 55. Rxg7 {[%emt 0:00:02]} 1-0

[Event "FIDE Women World Blitz 2021"]
[Site "Warsaw"]
[Date "2021.12.29"]
[Round "2.12"]
[White "Szczotka, Klara"]
[Black "Rakhmangulova, Anastasiya"]
[Result "0-1"]
[ECO "E90"]
[WhiteElo "1584"]
[BlackElo "2174"]
[Annotator "NA"]
[PlyCount "75"]
[EventDate "2021.12.29"]
[EventType "swiss"]
[EventCountry "POL"]
[Tiebreak "Cut1 Buchholz"]
[SourceTitle "playchess.com"]
[Source "ChessBase"]
[SourceQuality "1"]
[TimeControl "180+2"]

1. d4 {[%emt 0:00:01]} Nf6 {[%emt 0:00:02]} 2. c4 {[%emt 0:00:00]} c5 {[%emt 0:
00:00]} 3. d5 {[%emt 0:00:01]} e6 {[%emt 0:00:00]} 4. Nc3 {[%emt 0:00:02]} d6 {
[%emt 0:00:01]} 5. e4 {[%emt 0:00:03]} g6 {[%emt 0:00:01]} 6. h3 {[%emt 0:00:
01]} Bg7 {[%emt 0:00:01]} 7. Nf3 {[%emt 0:00:01]} O-O {[%emt 0:00:02]} 8. Be3 {
[%emt 0:00:05]} Na6 {[%emt 0:00:02]} 9. Be2 {[%emt 0:00:05]} e5 {[%emt 0:00:22]
} 10. g4 {[%emt 0:00:02]} Nc7 {[%emt 0:00:15]} 11. a4 {[%emt 0:00:02]} a6 {
[%emt 0:00:14]} 12. Nd2 {[%emt 0:00:14]} Rb8 {[%emt 0:00:02]} 13. g5 {[%emt 0:
00:11]} Nfe8 {[%emt 0:00:18]} 14. h4 {[%emt 0:00:02]} Bd7 {[%emt 0:00:18]} 15.
a5 {[%emt 0:00:40]} b5 {[%emt 0:00:04]} 16. axb6 {[%emt 0:00:01]} Rxb6 {
[%emt 0:00:00]} 17. Qc2 {[%emt 0:00:07]} Qb8 {[%emt 0:00:05]} 18. b3 {[%emt 0:
00:02]} f5 {[%emt 0:00:19]} 19. f3 {[%emt 0:00:36]} Qd8 {[%emt 0:00:14]} 20.
Nd1 {[%emt 0:00:48]} Rb8 {[%emt 0:00:04]} 21. Bf2 {[%emt 0:00:08]} Ra8 {
[%emt 0:00:01]} 22. Ne3 {[%emt 0:00:04]} a5 {[%emt 0:00:22]} 23. Ra2 {[%emt 0:
00:15]} Na6 {[%emt 0:00:01]} 24. Qc3 {[%emt 0:00:11]} Nb4 {[%emt 0:00:01]} 25.
Ra1 {[%emt 0:00:01]} a4 {[%emt 0:00:06]} 26. bxa4 {[%emt 0:00:01]} Rxa4 {
[%emt 0:00:01]} 27. Rxa4 {[%emt 0:00:01]} Bxa4 {[%emt 0:00:01]} 28. Qa3 {
[%emt 0:00:06]} Bd7 {[%emt 0:00:02]} 29. Qb3 {[%emt 0:00:04]} Qa5 {[%emt 0:00:
02]} 30. Bd1 {[%emt 0:00:04]} Nc7 {[%emt 0:00:05]} 31. Nc2 {[%emt 0:00:00]} Rb8
{[%emt 0:00:03]} 32. Nxb4 {[%emt 0:00:03]} Rxb4 {[%emt 0:00:02]} 33. Qc2 {
[%emt 0:00:01]} Ba4 {[%emt 0:00:04]} 34. Qc1 {[%emt 0:00:03]} Bxd1 {[%emt 0:00:
02]} 35. Qxd1 {[%emt 0:00:01]} Rb2 {[%emt 0:00:01]} 36. Be3 {[%emt 0:00:03]}
Na6 {[%emt 0:00:05]} 37. O-O {[%emt 0:00:03]} f4 {[%emt 0:00:01]} 38. Nb3 {
[%emt 0:00:05]} 0-1

[Event "FIDE Women World Blitz 2021"]
[Site "Warsaw"]
[Date "2021.12.29"]
[Round "2.13"]
[White "Vaishali R"]
[Black "Zawadzka, Jolanta"]
[Result "1-0"]
[ECO "D02"]
[WhiteElo "2405"]
[BlackElo "2429"]
[Annotator "NA"]
[PlyCount "65"]
[EventDate "2021.12.29"]
[EventType "swiss"]
[EventCountry "POL"]
[Tiebreak "Cut1 Buchholz"]
[SourceTitle "playchess.com"]
[Source "ChessBase"]
[SourceQuality "1"]
[TimeControl "180+2"]

1. d4 {[%emt 0:00:02]} d5 {[%emt 0:00:01]} 2. Bf4 {[%emt 0:00:02]} Nf6 {
[%emt 0:00:01]} 3. e3 {[%emt 0:00:01]} c5 {[%emt 0:00:02]} 4. Nf3 {[%emt 0:00:
02]} Nc6 {[%emt 0:00:01]} 5. Nbd2 {[%emt 0:00:02]} cxd4 {[%emt 0:00:04]} 6.
exd4 {[%emt 0:00:01]} Bf5 {[%emt 0:00:02]} 7. Bb5 {[%emt 0:00:04]} e6 {[%emt 0:
00:13]} 8. Ne5 {[%emt 0:00:10]} Rc8 {[%emt 0:00:01]} 9. g4 {[%emt 0:00:07]} Bg6
{[%emt 0:00:08]} 10. h4 {[%emt 0:00:01]} h6 {[%emt 0:00:29]} 11. Nxg6 {[%emt 0:
00:12]} fxg6 {[%emt 0:00:01]} 12. c3 {[%emt 0:00:07]} Bd6 {[%emt 0:00:05]} 13.
Bxd6 {[%emt 0:01:04]} Qxd6 {[%emt 0:00:01]} 14. Qe2 {[%emt 0:00:02]} O-O {
[%emt 0:00:06]} 15. g5 {[%emt 0:00:07]} Nh5 {[%emt 0:00:06]} 16. gxh6 {[%emt 0:
00:08]} gxh6 {[%emt 0:00:01]} 17. Bxc6 {[%emt 0:00:15]} Rxc6 {[%emt 0:00:10]}
18. O-O-O {[%emt 0:00:09]} Nf4 {[%emt 0:00:19]} 19. Qe3 {[%emt 0:00:07]} b5 {
[%emt 0:00:10]} 20. Kb1 {[%emt 0:00:25]} b4 {[%emt 0:00:01]} 21. Rc1 {[%emt 0:
00:01]} bxc3 {[%emt 0:00:39]} 22. Rxc3 {[%emt 0:00:01]} Rfc8 {[%emt 0:00:04]}
23. Rxc6 {[%emt 0:00:09]} Rxc6 {[%emt 0:00:11]} 24. Nf3 {[%emt 0:00:02]} Rc7 {
[%emt 0:00:20]} 25. Ne5 {[%emt 0:00:02]} Qf8 {[%emt 0:00:07]} 26. Rg1 {[%emt 0:
00:06]} Qf5+ {[%emt 0:00:01]} 27. Ka1 {[%emt 0:00:00]} Kh7 {[%emt 0:00:03]} 28.
a3 {[%emt 0:00:02]} Rc2 {[%emt 0:00:16]} 29. Rc1 {[%emt 0:00:09]} g5 {[%emt 0:
00:04]} 30. hxg5 {[%emt 0:00:03]} hxg5 {[%emt 0:00:02]} 31. Rh1+ {[%emt 0:00:
05]} Kg7 {[%emt 0:00:01]} 32. Qb3 {[%emt 0:00:01]} Rc7 {[%emt 0:00:01]} 33. Qb8
{[%emt 0:00:02]} 1-0

[Event "FIDE Women World Blitz 2021"]
[Site "Warsaw"]
[Date "2021.12.29"]
[Round "2.13"]
[White "Paramzina, Anastasya"]
[Black "Zabrzanska, Weronika"]
[Result "0-1"]
[ECO "C54"]
[WhiteElo "2260"]
[BlackElo "1596"]
[Annotator "NA"]
[PlyCount "72"]
[EventDate "2021.12.29"]
[EventType "swiss"]
[EventCountry "POL"]
[Tiebreak "Cut1 Buchholz"]
[SourceTitle "playchess.com"]
[Source "ChessBase"]
[SourceQuality "1"]
[TimeControl "180+2"]

1. e4 {[%emt 0:00:00]} e5 {[%emt 0:00:00]} 2. Nf3 {[%emt 0:00:01]} Nc6 {
[%emt 0:00:01]} 3. Bc4 {[%emt 0:00:02]} Bc5 {[%emt 0:00:01]} 4. O-O {[%emt 0:
00:02]} Nf6 {[%emt 0:00:01]} 5. d3 {[%emt 0:00:01]} d6 {[%emt 0:00:02]} 6. c3 {
[%emt 0:00:01]} a5 {[%emt 0:00:05]} 7. Re1 {[%emt 0:00:06]} O-O {[%emt 0:00:02]
} 8. Nbd2 {[%emt 0:00:09]} Ng4 {[%emt 0:00:20]} 9. Re2 {[%emt 0:00:03]} Kh8 {
[%emt 0:00:03]} 10. h3 {[%emt 0:00:12]} Nh6 {[%emt 0:00:22]} 11. Nf1 {[%emt 0:
00:03]} f5 {[%emt 0:00:01]} 12. Bxh6 {[%emt 0:01:03]} gxh6 {[%emt 0:00:13]} 13.
exf5 {[%emt 0:00:01]} Bxf5 {[%emt 0:00:04]} 14. Bd5 {[%emt 0:00:01]} Qc8 {
[%emt 0:00:24]} 15. d4 {[%emt 0:00:11]} exd4 {[%emt 0:00:37]} 16. cxd4 {
[%emt 0:00:02]} Bb6 {[%emt 0:00:04]} 17. Ng3 {[%emt 0:00:05]} Nb4 {[%emt 0:00:
34]} 18. Nxf5 {[%emt 0:00:21]} Nxd5 {[%emt 0:00:05]} 19. Ne7 {[%emt 0:00:06]}
Nxe7 {[%emt 0:00:17]} 20. Rxe7 {[%emt 0:00:01]} Qd8 {[%emt 0:00:08]} 21. Re6 {
[%emt 0:00:37]} Rf6 {[%emt 0:00:08]} 22. Re3 {[%emt 0:00:02]} Qg8 {[%emt 0:00:
04]} 23. Qe2 {[%emt 0:00:05]} Raf8 {[%emt 0:00:01]} 24. Re1 {[%emt 0:00:12]}
Qg6 {[%emt 0:00:04]} 25. Qd2 {[%emt 0:00:14]} Rxf3 {[%emt 0:00:06]} 26. Re7 {
[%emt 0:00:04]} R3f7 {[%emt 0:00:03]} 27. R7e6 {[%emt 0:00:01]} Qg7 {[%emt 0:
00:02]} 28. Rxh6 {[%emt 0:00:02]} Rxf2 {[%emt 0:00:02]} 29. Qxf2 {[%emt 0:00:
03]} Rxf2 {[%emt 0:00:02]} 30. Re8+ {[%emt 0:00:01]} Rf8 {[%emt 0:00:01]} 31.
Rhe6 {[%emt 0:00:01]} Kg8 {[%emt 0:00:02]} 32. Kh1 {[%emt 0:00:02]} Bxd4 {
[%emt 0:00:01]} 33. R6e7 {[%emt 0:00:02]} Qg3 {[%emt 0:00:02]} 34. Rxf8+ {
[%emt 0:00:02]} Kxf8 {[%emt 0:00:01]} 35. Rxc7 {[%emt 0:00:02]} Be5 {[%emt 0:
00:00]} 36. Rc8+ {[%emt 0:00:01]} Ke7 {[%emt 0:00:01]} 0-1

[Event "FIDE Women World Blitz 2021"]
[Site "Warsaw"]
[Date "2021.12.29"]
[Round "2.14"]
[White "Kucharska, Honorata"]
[Black "Shuvalova, Polina"]
[Result "0-1"]
[ECO "E54"]
[WhiteElo "2168"]
[BlackElo "2515"]
[Annotator "ChessBase"]
[PlyCount "71"]
[EventDate "2021.12.29"]
[EventType "swiss"]
[EventCountry "POL"]
[Tiebreak "Cut1 Buchholz"]
[SourceTitle "playchess.com"]
[Source "ChessBase"]
[SourceQuality "1"]
[TimeControl "180+2"]

1. d4 {[%emt 0:00:01]} Nf6 {[%emt 0:00:01]} 2. c4 {[%emt 0:00:01]} e6 {[%emt 0:
00:02]} 3. Nc3 {[%emt 0:00:01]} Bb4 {[%emt 0:00:02]} 4. e3 {[%emt 0:00:02]} O-O
{[%emt 0:00:02]} 5. Bd3 {[%emt 0:00:01]} d5 {[%emt 0:00:02]} 6. Nf3 {[%emt 0:
00:02]} dxc4 {[%emt 0:00:02]} 7. Bxc4 {[%emt 0:00:01]} c5 {[%emt 0:00:01]} 8.
O-O {[%emt 0:00:03]} cxd4 {[%emt 0:00:01]} 9. exd4 {[%emt 0:00:04]} b6 {
[%emt 0:00:01]} 10. a3 {[%emt 0:00:05]} Bxc3 {[%emt 0:00:03]} 11. bxc3 {
[%emt 0:00:01]} Qc7 {[%emt 0:00:03]} 12. Qe2 {[%emt 0:00:17]} Bb7 {[%emt 0:00:
04]} 13. Ne5 {[%emt 0:00:03]} Nbd7 {[%emt 0:00:14]} 14. Bf4 {[%emt 0:00:08]}
Nxe5 {[%emt 0:00:08]} 15. Bxe5 {[%emt 0:00:01]} Qc6 {[%emt 0:00:02]} 16. f3 {
[%emt 0:00:13]} Rac8 {[%emt 0:00:06]} 17. Bd3 {[%emt 0:00:18]} Qxc3 {[%emt 0:
00:07]} 18. Rfc1 {[%emt 0:00:58]} Qxc1+ {[%emt 0:00:17]} 19. Rxc1 {[%emt 0:00:
01]} Rxc1+ {[%emt 0:00:01]} 20. Kf2 {[%emt 0:00:01]} Rfc8 {[%emt 0:00:03]} 21.
Bxf6 {[%emt 0:00:04]} gxf6 {[%emt 0:00:01]} 22. Qe3 {[%emt 0:00:02]} Rd1 {
[%emt 0:00:19]} 23. Kg3 {[%emt 0:00:22]} Bd5 {[%emt 0:00:15]} 24. Ba6 {[%emt 0:
00:10]} Rc2 {[%emt 0:00:14]} 25. Qf4 {[%emt 0:00:31]} Rg1 {[%emt 0:00:09]} 26.
Qxf6 {[%emt 0:00:09]} Rgxg2+ {[%emt 0:00:09]} 27. Kf4 {[%emt 0:00:02]} Rcf2 {
[%emt 0:00:04]} 28. Qd8+ {[%emt 0:00:07]} Kg7 {[%emt 0:00:01]} 29. Ke5 {
[%emt 0:00:02]} Rxf3 {[%emt 0:00:12]} 30. Qe7 {[%emt 0:00:05]} Rf5+ {[%emt 0:
00:15]} 31. Kd6 {[%emt 0:00:02]} Rg4 {[%emt 0:00:22]} 32. Kc7 {[%emt 0:00:05]}
Rxd4 {[%emt 0:00:06]} 33. Bb5 {[%emt 0:00:01]} Be4 {[%emt 0:00:19]} 34. a4 {
[%emt 0:00:01]} Rc5+ {[%emt 0:00:04]} 35. Kb8 {[%emt 0:00:03]} Rcd5 {[%emt 0:
00:02]} 36. Qa3 {[%emt 0:00:00]} 0-1